Workbook

Sheet Dashboard
M3: 2021
M4: MARZO | CY4: Empresa - Sector | CZ4: Empresa - Sector
A5: Acumulado a: | B5: =M4 -> MARZO | E5: Datos acumulados | G5: Cuota Negocio / Total ASEMPLEO | J5: =empresa_ccaa!L5 -> iEMPRESA | L5: ¿▲"sin" mi Empresa? | CZ5: p.p.
A6: Total | B6: Facturación, € | D6: (a) | E6: =J5 -> iEMPRESA | I6: Cuota de Facturación | J6: ∆ | L6: (b) | M6: ∆ (a-b) | CZ6: Puntos porcentuales
B7: 2020 | C7: 2021 | D7: % i.a. | E7: =B7 -> 2020 | F7: =C7 -> 2021 | G7: % i.a. | H7: =E7 -> 2020 | I7: =F7 -> 2021 | J7: Dif.P.P. | L7: % i.a. | M7: Dif.P.P. | CY7: Dif. Ritmo | CZ7: Importancia Relativa | DC7: Empresa
A8: Nacional | B8: 874193503.6 | C8: 897574315.3 | D8: =((C8/B8)-1) -> 0.02674557929 | E8: =empresa_ccaa!K12 -> 0 | F8: =empresa_ccaa!L12 -> 0 | G8: =IF(E8>0,((F8/E8)-1),"n.a.") -> n.a. | H8: =E8/B8 -> 0 | I8: =F8/C8 -> 0 | J8: =(I8-H8)*100 -> 0 | L8: =((C8-F8)/(B8-E8))-1 -> 0.02674557929 | M8: =(D8-L8)*100 -> 0 | CY8: =IF(G8="n.a.","n.a.",(G8-D8)*100) -> n.a. | CZ8: =empresa_ccaa!M12-empresa_ccaa!H12 ->  | DB8: criterio_rank | DC8: peso | DD8: Comunidad | DE8: % i.a. | DF8: Total_Regional
A9: ANDALUCIA | B9: 74863568.06 | C9: 92528310.46 | D9: =((C9/B9)-1) -> 0.2359591302 | E9: =empresa_ccaa!K13 -> 0 | F9: =empresa_ccaa!L13 -> 0 | G9: n.a. | H9: =E9/B9 -> 0 | I9: =F9/C9 -> 0 | J9: =(I9-H9)*100 -> 0 | L9: =((C9-F9)/(B9-E9))-1 -> 0.2359591302 | M9: 0 | CY9: =IF(G9="n.a.","n.a.",(G9-D9)*100) -> n.a. | CZ9: =empresa_ccaa!M13-empresa_ccaa!H13 ->  | DB9: =IF(DC9=$DC$27,1,0) -> 1 | DC9: =I9 -> 0 | DD9: =A9 -> ANDALUCIA | DE9: =G9 -> n.a. | DF9: =D9 -> 0.2359591302
A10: ARAGON | B10: 43802389.91 | C10: 46191228.45 | D10: =((C10/B10)-1) -> 0.05453671692 | E10: =empresa_ccaa!K14 -> 0 | F10: =empresa_ccaa!L14 -> 0 | G10: n.a. | H10: 0 | I10: 0 | J10: 0 | L10: 0.05453671692 | M10: 0 | CY10: =IF(G10="n.a.","n.a.",(G10-D10)*100) -> n.a. | CZ10: =empresa_ccaa!M14-empresa_ccaa!H14 ->  | DB10: =IF(DC10=$DC$27,1,0) -> 1 | DC10: =I10 -> 0 | DD10: =A10 -> ARAGON | DE10: =G10 -> n.a. | DF10: =D10 -> 0.05453671692
A11: ASTURIAS | B11: 16047641.54 | C11: 16667187.15 | D11: 0.03860664585 | E11: =empresa_ccaa!K15 -> 0 | F11: =empresa_ccaa!L15 -> 0 | G11: n.a. | H11: 0 | I11: 0 | J11: 0 | L11: 0.03860664585 | M11: 0 | CY11: =IF(G11="n.a.","n.a.",(G11-D11)*100) -> n.a. | CZ11: =empresa_ccaa!M15-empresa_ccaa!H15 ->  | DB11: =IF(DC11=$DC$27,1,0) -> 1 | DC11: =I11 -> 0 | DD11: =A11 -> ASTURIAS | DE11: =G11 -> n.a. | DF11: =D11 -> 0.03860664585
A12: BALEARES | B12: 2343211.565 | C12: 1878082.485 | D12: -0.1985006763 | E12: =empresa_ccaa!K16 -> 0 | F12: =empresa_ccaa!L16 -> 0 | G12: =IF(E12>0,((F12/E12)-1),"n.a.") -> n.a. | H12: 0 | I12: 0 | J12: 0 | L12: -0.1985006763 | M12: 0 | CY12: =IF(G12="n.a.","n.a.",(G12-D12)*100) -> n.a. | CZ12: =empresa_ccaa!M16-empresa_ccaa!H16 ->  | DB12: =IF(DC12=$DC$27,1,0) -> 1 | DC12: =I12 -> 0 | DD12: =A12 -> BALEARES | DE12: =G12 -> n.a. | DF12: =D12 -> -0.1985006763
A13: CANARIAS | B13: 20707080.64 | C13: 9392802.886 | D13: -0.5463965661 | E13: =empresa_ccaa!K17 -> 0 | F13: =empresa_ccaa!L17 -> 0 | G13: n.a. | H13: 0 | I13: 0 | J13: 0 | L13: -0.5463965661 | M13: 0 | CY13: =IF(G13="n.a.","n.a.",(G13-D13)*100) -> n.a. | CZ13: =empresa_ccaa!M17-empresa_ccaa!H17 ->  | DB13: =IF(DC13=$DC$27,1,0) -> 1 | DC13: =I13 -> 0 | DD13: =A13 -> CANARIAS | DE13: =G13 -> n.a. | DF13: =D13 -> -0.5463965661
A14: CANTABRIA | B14: 22804150.09 | C14: 25844322.88 | D14: 0.1333166456 | E14: =empresa_ccaa!K18 -> 0 | F14: =empresa_ccaa!L18 -> 0 | G14: n.a. | H14: 0 | I14: 0 | J14: 0 | L14: 0.1333166456 | M14: 0 | CY14: =IF(G14="n.a.","n.a.",(G14-D14)*100) -> n.a. | CZ14: =empresa_ccaa!M18-empresa_ccaa!H18 ->  | DB14: =IF(DC14=$DC$27,1,0) -> 1 | DC14: =I14 -> 0 | DD14: =A14 -> CANTABRIA | DE14: =G14 -> n.a. | DF14: =D14 -> 0.1333166456
A15: CASTILLA-LA MANCHA | B15: 46649966.22 | C15: 57838157.77 | D15: 0.2398327899 | E15: =empresa_ccaa!K19 -> 0 | F15: =empresa_ccaa!L19 -> 0 | G15: n.a. | H15: 0 | I15: 0 | J15: 0 | L15: 0.2398327899 | M15: 0 | CY15: =IF(G15="n.a.","n.a.",(G15-D15)*100) -> n.a. | CZ15: =empresa_ccaa!M19-empresa_ccaa!H19 ->  | DB15: =IF(DC15=$DC$27,1,0) -> 1 | DC15: =I15 -> 0 | DD15: =A15 -> CASTILLA-LA MANCHA | DE15: =G15 -> n.a. | DF15: =D15 -> 0.2398327899
A16: CASTILLA Y LEÓN | B16: 56027563.92 | C16: 51216950.72 | D16: -0.08586154507 | E16: =empresa_ccaa!K20 -> 0 | F16: =empresa_ccaa!L20 -> 0 | G16: n.a. | H16: 0 | I16: 0 | J16: =(I16-H16)*100 -> 0 | L16: -0.08586154507 | M16: 0 | CY16: =IF(G16="n.a.","n.a.",(G16-D16)*100) -> n.a. | CZ16: =empresa_ccaa!M20-empresa_ccaa!H20 ->  | DB16: =IF(DC16=$DC$27,1,0) -> 1 | DC16: =I16 -> 0 | DD16: =A16 -> CASTILLA Y LEÓN | DE16: =G16 -> n.a. | DF16: =D16 -> -0.08586154507
A17: CATALUÑA | B17: 201817126.6 | C17: 207635254.9 | D17: 0.02882871449 | E17: =empresa_ccaa!K21 -> 0 | F17: =empresa_ccaa!L21 -> 0 | G17: =IF(E17>0,((F17/E17)-1),"n.a.") -> n.a. | H17: 0 | I17: 0 | J17: =(I17-H17)*100 -> 0 | L17: 0.02882871449 | M17: 0 | CY17: =IF(G17="n.a.","n.a.",(G17-D17)*100) -> n.a. | CZ17: =empresa_ccaa!M21-empresa_ccaa!H21 ->  | DB17: =IF(DC17=$DC$27,1,0) -> 1 | DC17: =I17 -> 0 | DD17: =A17 -> CATALUÑA | DE17: =G17 -> n.a. | DF17: =D17 -> 0.02882871449
A18: COMUNIDAD VALENCIANA | B18: 65251066.23 | C18: 76789698.02 | D18: 0.1768343792 | E18: =empresa_ccaa!K22 -> 0 | F18: =empresa_ccaa!L22 -> 0 | G18: n.a. | H18: 0 | I18: 0 | J18: =(I18-H18)*100 -> 0 | L18: 0.1768343792 | M18: 0 | CY18: =IF(G18="n.a.","n.a.",(G18-D18)*100) -> n.a. | CZ18: =empresa_ccaa!M22-empresa_ccaa!H22 ->  | DB18: =IF(DC18=$DC$27,1,0) -> 1 | DC18: =I18 -> 0 | DD18: =A18 -> COMUNIDAD VALENCIANA | DE18: =G18 -> n.a. | DF18: =D18 -> 0.1768343792
A19: EXTREMADURA | B19: 6727995.793 | C19: 11841108.66 | D19: 0.7599756335 | E19: =empresa_ccaa!K23 -> 0 | F19: =empresa_ccaa!L23 -> 0 | G19: n.a. | H19: 0 | I19: 0 | J19: 0 | L19: 0.7599756335 | M19: 0 | CY19: =IF(G19="n.a.","n.a.",(G19-D19)*100) -> n.a. | CZ19: =empresa_ccaa!M23-empresa_ccaa!H23 ->  | DB19: =IF(DC19=$DC$27,1,0) -> 1 | DC19: =I19 -> 0 | DD19: =A19 -> EXTREMADURA | DE19: =G19 -> n.a. | DF19: =D19 -> 0.7599756335
A20: GALICIA | B20: 43637214.87 | C20: 36768696.04 | D20: -0.1574004859 | E20: =empresa_ccaa!K24 -> 0 | F20: =empresa_ccaa!L24 -> 0 | G20: n.a. | H20: 0 | I20: 0 | J20: 0 | L20: -0.1574004859 | M20: 0 | CY20: =IF(G20="n.a.","n.a.",(G20-D20)*100) -> n.a. | CZ20: =empresa_ccaa!M24-empresa_ccaa!H24 ->  | DB20: =IF(DC20=$DC$27,1,0) -> 1 | DC20: =I20 -> 0 | DD20: =A20 -> GALICIA | DE20: =G20 -> n.a. | DF20: =D20 -> -0.1574004859
A21: MADRID | B21: 144724320.2 | C21: 142777001.2 | D21: -0.0134553677 | E21: =empresa_ccaa!K25 -> 0 | F21: =empresa_ccaa!L25 -> 0 | G21: n.a. | H21: 0 | I21: 0 | J21: 0 | L21: -0.0134553677 | M21: 0 | CY21: =IF(G21="n.a.","n.a.",(G21-D21)*100) -> n.a. | CZ21: =empresa_ccaa!M25-empresa_ccaa!H25 ->  | DB21: =IF(DC21=$DC$27,1,0) -> 1 | DC21: =I21 -> 0 | DD21: =A21 -> MADRID | DE21: =G21 -> n.a. | DF21: =D21 -> -0.0134553677
A22: MURCIA | B22: 54638894.68 | C22: 52597795.72 | D22: -0.03735615392 | E22: =empresa_ccaa!K26 -> 0 | F22: =empresa_ccaa!L26 -> 0 | G22: n.a. | H22: 0 | I22: 0 | J22: 0 | L22: -0.03735615392 | M22: 0 | CY22: =IF(G22="n.a.","n.a.",(G22-D22)*100) -> n.a. | CZ22: =empresa_ccaa!M26-empresa_ccaa!H26 ->  | DB22: =IF(DC22=$DC$27,1,0) -> 1 | DC22: =I22 -> 0 | DD22: =A22 -> MURCIA | DE22: =G22 -> n.a. | DF22: =D22 -> -0.03735615392
A23: NAVARRA | B23: 28260292.4 | C23: 23562678.56 | D23: -0.1662266536 | E23: =empresa_ccaa!K27 -> 0 | F23: =empresa_ccaa!L27 -> 0 | G23: n.a. | H23: 0 | I23: 0 | J23: 0 | L23: -0.1662266536 | M23: 0 | CY23: =IF(G23="n.a.","n.a.",(G23-D23)*100) -> n.a. | CZ23: =empresa_ccaa!M27-empresa_ccaa!H27 ->  | DB23: =IF(DC23=$DC$27,1,0) -> 1 | DC23: =I23 -> 0 | DD23: =A23 -> NAVARRA | DE23: =G23 -> n.a. | DF23: =D23 -> -0.1662266536
A24: PAIS VASCO | B24: 38088771.69 | C24: 37827354.58 | D24: -0.00686336411 | E24: =empresa_ccaa!K28 -> 0 | F24: =empresa_ccaa!L28 -> 0 | G24: n.a. | H24: 0 | I24: 0 | J24: 0 | L24: -0.00686336411 | M24: 0 | CY24: =IF(G24="n.a.","n.a.",(G24-D24)*100) -> n.a. | CZ24: =empresa_ccaa!M28-empresa_ccaa!H28 ->  | DB24: =IF(DC24=$DC$27,1,0) -> 1 | DC24: =I24 -> 0 | DD24: =A24 -> PAIS VASCO | DE24: =G24 -> n.a. | DF24: =D24 -> -0.00686336411
A25: RIOJA (LA) | B25: 7802249.27 | C25: 6217684.772 | D25: -0.2030907298 | E25: =empresa_ccaa!K29 -> 0 | F25: =empresa_ccaa!L29 -> 0 | G25: n.a. | H25: 0 | I25: 0 | J25: 0 | L25: -0.2030907298 | M25: 0 | CY25: =IF(G25="n.a.","n.a.",(G25-D25)*100) -> n.a. | CZ25: =empresa_ccaa!M29-empresa_ccaa!H29 ->  | DB25: =IF(DC25=$DC$27,1,0) -> 1 | DC25: =I25 -> 0 | DD25: =A25 -> RIOJA (LA) | DE25: =G25 -> n.a. | DF25: =D25 -> -0.2030907298
DB26: codifico=1 | DC26: máximo
DB27: =DMAX(DB8:DD25,DC8,DB8:DB25)*1 -> 0 | DC27: =MAX(DC9:DC25) -> 0
J28: =I6 -> Cuota de Facturación | DA28: geo data | DB28: =VLOOKUP(1,DB8:DF25,3,0) -> ANDALUCIA
M29: =I7 -> 2021 | DB29: el dato a buscar debe estar en la primera columna.
B30: % i.a. | F30: % i.a. | DB30: =VLOOKUP(1,DB8:DF25,4,0)*1 -> 
B31: =C7 -> 2021 | F31: =B31 -> 2021 | DB31: =VLOOKUP(1,DB8:DF25,5,0)*1 -> 0.2359591302
B32: Total | F32: Empresa | J32: =J5 -> iEMPRESA
M33: Ámbito
A34: Ámbito | B34: =F34 -> Nacional | F34: =J34 -> Nacional | J34: Nacional | M34: Nacional
J38: =DB28 -> ANDALUCIA | M38: CCAA
M39: Líder para la
B40: % i.a. | F40: % i.a. | M40: Empresa
B41: =B31 -> 2021 | F41: =B41 -> 2021
B42: Total | F42: Empresa | J42: =J32 -> iEMPRESA
A44: Ámbito | B44: =F44 -> ANDALUCIA | F44: =J44 -> ANDALUCIA | J44: =J38 -> ANDALUCIA
A48: Fuente: Cifras consolidadas del sector. Valores absolutos 2015-2021 y cifras de evolución de 2016 a la fecha. ASEMPLEO ©.
A49: Nota de Confidencialidad: Este informe comparativo contiene datos redondeados que son ficticeos y serán reemplazados por los que la Empresa introduzca en "empresa_ccaa".

Sheet Ayuda y Version (hidden)
G2: Versión de plantilla: | H2: 2.5

Sheet pBlock (hidden)
B4: Block Test
B5: Info1 | C5: Info2

Sheet pAccel0 (hidden)
A1: Gauge Configuration | O1: Gauge Configuration | Z1: Gauge Configuration | AK1: Gauge Configuration
F2: Decal | T2: Decal | AE2: Decal | AP2: Decal
A3: Title: | B3: =Dashboard!#REF! ->  | F3: 0 | O3: Title: | P3: =pAccel0!B3 ->  | T3: 0 | Z3: Title: | AA3: Empresa | AE3: 0 | AK3: Title: | AL3: CCAA | AP3: 0
A4: Real Value: | B4: =Dashboard!#REF! ->  | O4: Real Value: | P4: =Dashboard!I8 -> 0 | Z4: Real Value: | AA4: =Dashboard!I8 -> 0 | AK4: Real Value: | AL4: =Dashboard!DB27 -> 0
A6: Color bands | O6: Color bands | Z6: Color bands | AK6: Color bands
A7: Red: | B7: 2 | O7: Red: | P7: 2 | Z7: Red: | AA7: 2 | AK7: Red: | AL7: 2
A8: Yellow: | B8: 15 | O8: Yellow: | P8: 15 | Z8: Yellow: | AA8: 15 | AK8: Yellow: | AL8: 15
A9: Green: | B9: 23 | O9: Green: | P9: 23 | Z9: Green: | AA9: 23 | AK9: Green: | AL9: 23
A11: Advanced Parameters | O11: Advanced Parameters | Z11: Advanced Parameters | AK11: Advanced Parameters
B12: Value to 100% | C12: =IF(ISERROR((B4-F3/100)*B27),0,(B4-F3/100)*B27) -> 0 | P12: Value to 100% | Q12: =IF(ISERROR((P4-T3/100)*P27),0,(P4-T3/100)*P27) -> 0 | AA12: Value to 100% | AB12: =IF(ISERROR((AA4-AE3/100)*AA27),0,(AA4-AE3/100)*AA27) -> 0 | AL12: Value to 100% | AM12: =IF(ISERROR((AL4-AP3/100)*AL27),0,(AL4-AP3/100)*AL27) -> 0
B13: Relative value | C13: =IF(C12>100%,102%,IF(C12<0%,-2%,C12))*1.506-0.253 -> -0.253 | P13: Relative value | Q13: =IF(Q12>100%,102%,IF(Q12<0%,-2%,Q12))*1.506-0.253 -> -0.253 | AA13: Relative value | AB13: =IF(AB12>100%,102%,IF(AB12<0%,-2%,AB12))*1.506-0.253 -> -0.253 | AL13: Relative value | AM13: =IF(AM12>100%,102%,IF(AM12<0%,-2%,AM12))*1.506-0.253 -> -0.253
A15: Angle | C15: =C13*PI() -> -0.7948229414 | O15: Angle | Q15: =Q13*PI() -> -0.7948229414 | Z15: Angle | AB15: =AB13*PI() -> -0.7948229414 | AK15: Angle | AM15: =AM13*PI() -> -0.7948229414
A16: x | B16: 0 | C16: =-COS(C15) -> -0.7004111508 | O16: x | P16: 0 | Q16: =-COS(Q15) -> -0.7004111508 | Z16: x | AA16: 0 | AB16: =-COS(AB15) -> -0.7004111508 | AK16: x | AL16: 0 | AM16: =-COS(AM15) -> -0.7004111508
A17: y | B17: 0 | C17: =SIN(C15) -> -0.7137396023 | O17: y | P17: 0 | Q17: =SIN(Q15) -> -0.7137396023 | Z17: y | AA17: 0 | AB17: =SIN(AB15) -> -0.7137396023 | AK17: y | AL17: 0 | AM17: =SIN(AM15) -> -0.7137396023
D19: Value | E19: Label | R19: Value | S19: Label | AC19: Value | AD19: Label | AN19: Value | AO19: Label
C20: 70 | D20: 10 | E20: =B26+F3 -> 4 | Q20: 70 | R20: 10 | S20: =P26+T3 -> 4 | AB20: 70 | AC20: 10 | AD20: =AA26+AE3 -> 4 | AM20: 70 | AN20: 10 | AO20: =AL26+AP3 -> 4
C21: =B7*$C$20/$B$25 -> 3.5 | D21: 10 | E21: =E20+$B$26 -> 8 | Q21: =P7*$C$20/$B$25 -> 3.5 | R21: 10 | S21: =S20+$B$26 -> 8 | AB21: =AA7*$AB$20/$AA$25 -> 3.5 | AC21: 10 | AD21: =AD20+$AA$26 -> 8 | AM21: =AL7*$AM$20/$AL$25 -> 3.5 | AN21: 10 | AO21: =AO20+$AL$26 -> 8
C22: =B8*$C$20/$B$25 -> 26.25 | D22: 10 | E22: 12 | Q22: =P8*$C$20/$B$25 -> 26.25 | R22: 10 | S22: 12 | AB22: =AA8*$AB$20/$AA$25 -> 26.25 | AC22: 10 | AD22: 12 | AM22: =AL8*$AM$20/$AL$25 -> 26.25 | AN22: 10 | AO22: =AO21+$AL$26 -> 12
C23: =B9*$C$20/$B$25 -> 40.25 | D23: 10 | E23: 16 | Q23: =P9*$C$20/$B$25 -> 40.25 | R23: 10 | S23: 16 | AB23: =AA9*$AB$20/$AA$25 -> 40.25 | AC23: 10 | AD23: 16 | AM23: 40.25 | AN23: 10 | AO23: 16
A24: White | C24: 23 | D24: 10 | E24: 20 | O24: White | Q24: 23 | R24: 10 | S24: 20 | Z24: White | AB24: 23 | AC24: 10 | AD24: 20 | AK24: White | AM24: 23 | AN24: 10 | AO24: 20
A25: Total | B25: =SUM(B7:B24) -> 40 | C25: =SUM(C21:C24) -> 93 | D25: 10 | E25: 24 | O25: Total | P25: =SUM(P7:P24) -> 40 | Q25: =SUM(Q21:Q24) -> 93 | R25: 10 | S25: 24 | Z25: Total | AA25: =SUM(AA7:AA24) -> 40 | AB25: =SUM(AB21:AB24) -> 93 | AC25: 10 | AD25: 24 | AK25: Total | AL25: =SUM(AL7:AL24) -> 40 | AM25: =SUM(AM21:AM24) -> 93 | AN25: 10 | AO25: 24
A26: Increment | B26: =B25/10 -> 4 | D26: 10 | E26: 28 | O26: Increment | P26: =P25/10 -> 4 | R26: 10 | S26: 28 | Z26: Increment | AA26: =AA25/10 -> 4 | AC26: 10 | AD26: 28 | AK26: Increment | AL26: =AL25/10 -> 4 | AN26: 10 | AO26: 28
A27: Conversion | B27: =100/B25 -> 2.5 | D27: 10 | E27: 32 | O27: Conversion | P27: =100/P25 -> 2.5 | R27: 10 | S27: 32 | Z27: Conversion | AA27: =100/AA25 -> 2.5 | AC27: 10 | AD27: 32 | AK27: Conversion | AL27: =100/AL25 -> 2.5 | AN27: 10 | AO27: 32
D28: 10 | E28: 36 | R28: 10 | S28: 36 | AC28: 10 | AD28: 36 | AN28: 10 | AO28: 36
D29: 10 | E29: 40 | R29: 10 | S29: 40 | AC29: 10 | AD29: 40 | AN29: 10 | AO29: 40
D30: 33 | E30: =F3 -> 0 | R30: 33 | S30: =T3 -> 0 | AC30: 33 | AD30: =AE3 -> 0 | AN30: 33 | AO30: =AP3 -> 0

Sheet pAccel1 (hidden)
A1: Gauge Configuration | Q1: Gauge Configuration | X1: Gauge Configuration | AE1: Gauge Configuration | AL1: Gauge Configuration | AS1: Gauge Configuration | AZ1: Gauge Configuration | BG1: Gauge Configuration
F2: Decal | V2: Decal | AC2: Decal | AJ2: Decal | AQ2: Decal | AX2: Decal | BE2: Decal | BL2: Decal
A3: Title: | B3: CPDs | F3: 100 | Q3: Title: | R3: Facturación | V3: 100 | X3: Title: | Y3: CPDs | AC3: 100 | AE3: Title: | AF3: Facturación | AJ3: 100 | AL3: Title: | AM3: Facturación | AQ3: 100 | AS3: Title: | AT3: Facturación | AX3: 100 | AZ3: Title: | BA3: Facturación | BE3: 100 | BG3: Title: | BH3: Facturación | BL3: 100
A4: Real Value: | B4: =Dashboard!#REF! ->  | C4: =Dashboard!#REF! ->  | Q4: Real Value: | R4: =Dashboard!#REF! ->  | X4: Real Value: | Y4: =Dashboard!#REF! ->  | AE4: Real Value: | AF4: =Dashboard!#REF! ->  | AL4: Real Value: | AM4: =Dashboard!D8 -> 0.02674557929 | AS4: Real Value: | AT4: =Dashboard!$G$8 -> n.a. | AZ4: Real Value: | BA4: =Dashboard!DB31 -> 0.2359591302 | BG4: Real Value: | BH4: =Dashboard!DB30 -> 
A6: Color bands
A7: Red: | B7: -50
A8: Yellow: | B8: 0
A9: Green: | B9: 50
A11: Advanced Parameters | Q11: Advanced Parameters | X11: Advanced Parameters | AE11: Advanced Parameters | AL11: Advanced Parameters | AS11: Advanced Parameters | AZ11: Advanced Parameters | BG11: Advanced Parameters
B12: Value to 100% | C12: =IF(ISERROR((B4-F3/100)*B27),0,(B4-F3/100)*B27) -> 0 | E12: =IF(ISERROR((C4-F3/100)*B27),0,(C4-F3/100)*B27) -> 0 | R12: Value to 100% | S12: =IF(ISERROR((R4-V3/100)*R27),0,(R4-V3/100)*R27) -> 0 | Y12: Value to 100% | Z12: =IF(ISERROR((Y4-AC3/100)*Y27),0,(Y4-AC3/100)*Y27) -> 0 | AF12: Value to 100% | AG12: =IF(ISERROR((AF4-AJ3/100)*AF27),0,(AF4-AJ3/100)*AF27) -> 0 | AM12: Value to 100% | AN12: =IF(ISERROR((AM4-AQ3/100)*AM27),0,(AM4-AQ3/100)*AM27) -> -1.946508841 | AT12: Value to 100% | AU12: =IF(ISERROR((AT4-AX3/100)*AT27),0,(AT4-AX3/100)*AT27) -> 0 | BA12: Value to 100% | BB12: =IF(ISERROR((BA4-BE3/100)*BA27),0,(BA4-BE3/100)*BA27) -> -1.52808174 | BH12: Value to 100% | BI12: =IF(ISERROR((BH4-BL3/100)*BH27),0,(BH4-BL3/100)*BH27) -> 0
B13: Relative value | C13: =IF(B4<-100%,-100%,IF(B4>100%,100%,2*B4/1)) ->  | D13: ojo1, todo en porcentaje, por 2, y con 1 al final en lugar de 100. | E13: =IF(C4<-100%,-100%,IF(C4>100%,100%,2*C4/1)) ->  | I13: Todos los negritas tienen dato 50, en lugar de 100 para que la escala recorra menos. | R13: Relative value | S13: =IF(R4<-100%,-100%,IF(R4>100%,100%,2*R4/1)) ->  | Y13: Relative value | Z13: =IF(Y4<-100%,-100%,IF(Y4>100%,100%,2*Y4/1)) ->  | AF13: Relative value | AG13: =IF(AF4<-100%,-100%,IF(AF4>100%,100%,2*AF4/1)) ->  | AM13: Relative value | AN13: =IF(AM4<-100%,-100%,IF(AM4>100%,100%,2*AM4/1)) -> 0.05349115857 | AT13: Relative value | AU13: =IF(AT4<-100%,-100%,IF(AT4>100%,100%,2*AT4/1)) -> 1 | BA13: Relative value | BB13: =IF(BA4<-100%,-100%,IF(BA4>100%,100%,2*BA4/1)) -> 0.4719182603 | BH13: Relative value | BI13: =IF(BH4<-100%,-100%,IF(BH4>100%,100%,2*BH4/1)) -> 
A15: Angle | C15: =C13*PI()/2 ->  | E15: =E13*PI()/2 ->  | Q15: Angle | S15: =S13*PI()/2 ->  | X15: Angle | Z15: =Z13*PI()/2 ->  | AE15: Angle | AG15: =AG13*PI()/2 ->  | AL15: Angle | AN15: =AN13*PI()/2 -> 0.0840237154 | AS15: Angle | AU15: =AU13*PI()/2 -> 1.570796327 | AZ15: Angle | BB15: =BB13*PI()/2 -> 0.7412874699 | BG15: Angle | BI15: =BI13*PI()/2 -> 
A16: x | B16: 0 | C16: =SIN(C15) ->  | D16: =B16 -> 0 | E16: =SIN(E15) ->  | Q16: x | R16: 0 | S16: =SIN(S15) ->  | X16: x | Y16: 0 | Z16: =SIN(Z15) ->  | AE16: x | AF16: 0 | AG16: =SIN(AG15) ->  | AL16: x | AM16: 0 | AN16: =SIN(AN15) -> 0.08392488261 | AS16: x | AT16: 0 | AU16: =SIN(AU15) -> 1 | AZ16: x | BA16: 0 | BB16: =SIN(BB15) -> 0.6752381086 | BG16: x | BH16: 0 | BI16: =SIN(BI15) -> 
A17: y | B17: 0 | C17: =-COS(C15) ->  | D17: =B17 -> 0 | E17: =-COS(E15) ->  | Q17: y | R17: 0 | S17: =-COS(S15) ->  | X17: y | Y17: 0 | Z17: =-COS(Z15) ->  | AE17: y | AF17: 0 | AG17: =-COS(AG15) ->  | AL17: y | AM17: 0 | AN17: =-COS(AN15) -> -0.9964720839 | AS17: y | AT17: 0 | AU17: =-COS(AU15) -> -6.125742275e-17 | AZ17: y | BA17: 0 | BB17: =-COS(BB15) -> -0.7375998215 | BG17: y | BH17: 0 | BI17: =-COS(BI15) -> 
D19: Value | E19: Label
C20: 50 | D20: 0 | E20: 50
C21: =E21 -> 40 | D21: =D31/D33 -> 5 | E21: =E20+$B$26 -> 40
C22: =E22 -> 30 | D22: =D21 -> 5 | E22: =E21+$B$26 -> 30
C23: 20 | D23: =D22 -> 5 | E23: 20
A24: White | C24: 10 | D24: 5 | E24: 10 | Q24: White | X24: White | AE24: White | AL24: White | AS24: White | AZ24: White | BG24: White
A25: Total | B25: 50 | C25: 0 | D25: 5 | E25: 0 | Q25: Total | R25: 50 | X25: Total | Y25: 50 | AE25: Total | AF25: 50 | AL25: Total | AM25: 50 | AS25: Total | AT25: 50 | AZ25: Total | BA25: 50 | BG25: Total | BH25: 50
A26: Increment | B26: -10 | C26: -10 | D26: 5 | E26: -10 | Q26: Increment | R26: -10 | X26: Increment | Y26: -10 | AE26: Increment | AF26: -10 | AL26: Increment | AM26: -10 | AS26: Increment | AT26: -10 | AZ26: Increment | BA26: -10 | BG26: Increment | BH26: -10
A27: Conversion | B27: =100/B25 -> 2 | C27: -20 | D27: 5 | E27: -20 | Q27: Conversion | R27: =100/R25 -> 2 | X27: Conversion | Y27: =100/Y25 -> 2 | AE27: Conversion | AF27: =100/AF25 -> 2 | AL27: Conversion | AM27: =100/AM25 -> 2 | AS27: Conversion | AT27: =100/AT25 -> 2 | AZ27: Conversion | BA27: =100/BA25 -> 2 | BG27: Conversion | BH27: =100/BH25 -> 2
C28: -30 | D28: 5 | E28: -30
C29: -40 | D29: 5 | E29: -40
C30: -50 | D30: 5 | E30: -50
D31: 50
D33: 10
D35: =SUM(D20:D30) -> 50

Sheet empresa_ccaa
M3: =Dashboard!M3 -> 2021
M4: =Dashboard!M4 -> MARZO
K5: Empresa | L5: =L9 -> iEMPRESA
C9: Facturación, € | F9: ASEMPLEO | G9: ASEMPLEO | K9: Empresa = | L9: iEMPRESA
C10: Dato acumulado a | E10: =M4 -> MARZO | F10: =Dashboard!B7 -> 2020 | G10: =Dashboard!C7 -> 2021 | J10: Facturación | K10: =F10 -> 2020 | L10: =G10 -> 2021
H11: Estructura (%) | J11: Datos acumulados | M11: Estructura (%) | N11: check
F12: =E65 -> 874193503.6 | G12: =B65 -> 897574315.3 | H12: =G12/G$12 -> 1 | I12: TOTAL | K12: =SUM(K13:K29) -> 0 | L12: =SUM(L13:L29) -> 0 | M12: =L12/L$12 ->  | N12: =L12/K12-1 -> 
F13: 74863568.06 | G13: 92528310.46 | H13: =G13/G$12 -> 0.1030870747 | I13: ANDALUCIA | M13: =L13/L$12 ->  | N13: =L13/K13-1 -> 
F14: 43802389.91 | G14: 46191228.45 | H14: =G14/G$12 -> 0.0514622886 | I14: ARAGON | M14: =L14/L$12 -> 
F15: 16047641.54 | G15: 16667187.15 | H15: =G15/G$12 -> 0.01856914449 | I15: ASTURIAS | M15: =L15/L$12 -> 
F16: 2343211.565 | G16: 1878082.485 | H16: 0.002092397757 | I16: BALEARES
F17: 20707080.64 | G17: 9392802.886 | H17: 0.01046465204 | I17: CANARIAS
F18: 22804150.09 | G18: 25844322.88 | H18: 0.02879351876 | I18: CANTABRIA
F19: 46649966.22 | G19: 57838157.77 | H19: 0.06443829417 | I19: CASTILLA-LA MANCHA
F20: 56027563.92 | G20: 51216950.72 | H20: 0.05706151551 | I20: CASTILLA Y LEÓN
F21: 201817126.6 | G21: 207635254.9 | H21: 0.2313293188 | I21: CATALUÑA | M21: =L21/L$12 -> 
F22: 65251066.23 | G22: 76789698.02 | H22: 0.08555246815 | I22: COMUNIDAD VALENCIANA
F23: 6727995.793 | G23: 11841108.66 | H23: 0.01319234347 | I23: EXTREMADURA
F24: 43637214.87 | G24: 36768696.04 | H24: 0.04096451449 | I24: GALICIA
F25: 144724320.2 | G25: 142777001.2 | H25: 0.1590698383 | I25: MADRID
F26: 54638894.68 | G26: 52597795.72 | H26: 0.05859993409 | I26: MURCIA
F27: 28260292.4 | G27: 23562678.56 | H27: 0.02625150716 | I27: NAVARRA
F28: 38088771.69 | G28: 37827354.58 | H28: 0.04214398066 | I28: PAIS VASCO
F29: 7802249.27 | G29: 6217684.772 | H29: 0.006927208885 | I29: RIOJA (LA)
A31: Fuente: Cifras consolidadas del sector. ASEMPLEO ©.
A32: Nota de Confidencialidad: Este informe comparativo se genera con los datos propios de la Empresa.
A60: D03: | D60: D03: | G60: D03 : | H60: Variación Interanual (%)
A61: MES: | B61: ACUMULADO A LA FECHA | D61: =A61 -> MES: | E61: =B61 -> ACUMULADO A LA FECHA | G61: =D61 -> MES: | H61: Tasa % i.a.
B63: Facturación | E63: Facturación | H63: Facturación
I64: check
A65: TOTAL | B65: 897574315.3 | D65: TOTAL | E65: 874193503.6 | G65: TOTAL | H65: 0.02674557929 | I65: =B65/E65-1 -> 0.02674557929
A66: ANDALUCIA | B66: 92528310.46 | D66: ANDALUCIA | E66: 74863568.06 | G66: ANDALUCIA | H66: 0.2359591302 | I66: =B66/E66-1 -> 0.2359591302
A67: ARAGON | B67: 46191228.45 | D67: ARAGON | E67: 43802389.91 | G67: ARAGON | H67: 0.05453671692 | I67: 0.05453671692
A68: ASTURIAS | B68: 16667187.15 | D68: ASTURIAS | E68: 16047641.54 | G68: ASTURIAS | H68: 0.03860664585 | I68: 0.03860664585
A69: BALEARES | B69: 1878082.485 | D69: BALEARES | E69: 2343211.565 | G69: BALEARES | H69: -0.1985006763 | I69: -0.1985006763
A70: CANARIAS | B70: 9392802.886 | D70: CANARIAS | E70: 20707080.64 | G70: CANARIAS | H70: -0.5463965661 | I70: -0.5463965661
A71: CANTABRIA | B71: 25844322.88 | D71: CANTABRIA | E71: 22804150.09 | G71: CANTABRIA | H71: 0.1333166456 | I71: 0.1333166456
A72: CASTILLA-LA MANCHA | B72: 57838157.77 | D72: CASTILLA-LA MANCHA | E72: 46649966.22 | G72: CASTILLA-LA MANCHA | H72: 0.2398327899 | I72: 0.2398327899
A73: CASTILLA Y LEÓN | B73: 51216950.72 | D73: CASTILLA Y LEÓN | E73: 56027563.92 | G73: CASTILLA Y LEÓN | H73: -0.08586154507 | I73: -0.08586154507
A74: CATALUÑA | B74: 207635254.9 | D74: CATALUÑA | E74: 201817126.6 | G74: CATALUÑA | H74: 0.02882871449 | I74: 0.02882871449
A75: COMUNIDAD VALENCIANA | B75: 76789698.02 | D75: COMUNIDAD VALENCIANA | E75: 65251066.23 | G75: COMUNIDAD VALENCIANA | H75: 0.1768343792 | I75: 0.1768343792
A76: EXTREMADURA | B76: 11841108.66 | D76: EXTREMADURA | E76: 6727995.793 | G76: EXTREMADURA | H76: 0.7599756335 | I76: 0.7599756335
A77: GALICIA | B77: 36768696.04 | D77: GALICIA | E77: 43637214.87 | G77: GALICIA | H77: -0.1574004859 | I77: -0.1574004859
A78: MADRID | B78: 142777001.2 | D78: MADRID | E78: 144724320.2 | G78: MADRID | H78: -0.0134553677 | I78: -0.0134553677
A79: MURCIA | B79: 52597795.72 | D79: MURCIA | E79: 54638894.68 | G79: MURCIA | H79: -0.03735615392 | I79: -0.03735615392
A80: NAVARRA | B80: 23562678.56 | D80: NAVARRA | E80: 28260292.4 | G80: NAVARRA | H80: -0.1662266536 | I80: -0.1662266536
A81: PAIS VASCO | B81: 37827354.58 | D81: PAIS VASCO | E81: 38088771.69 | G81: PAIS VASCO | H81: -0.00686336411 | I81: -0.00686336411
A82: RIOJA (LA) | B82: 6217684.772 | D82: RIOJA (LA) | E82: 7802249.27 | G82: RIOJA (LA) | H82: -0.2030907298 | I82: =B82/E82-1 -> -0.2030907298
A83: Ceuta y Melilla | D83: Ceuta y Melilla | G83: Ceuta y Melilla
